{"text_format":"2","workbook":"xlsx","n_sheets":1,"sheets":["Sheet1"],"not_rendered":{"charts":0,"images":0,"macros":0,"external_links":0,"defined_names":0,"comments":0,"pivot_tables":0},"unopened":[],"bounds":{"document_bytes":16777216,"sheet_cells":100000,"run_cost":"one","rows_first":2000,"rows_last":500,"rows_between":2000,"halvings":0,"cell_chars":16384,"cell_head_chars":4096},"cells_cut":0,"cells_raw":0,"read":"whole","date_system":"1900"}

{"sheet":"Sheet1","index":0,"n_rows":34,"n_cols":5,"rows_kept":34,"cut":false,"hidden":false,"merged":[[0,0,0,4]]}
["3.7  110"]
["产品","条码","标签","标签下","数量"]
["Disp-10A+ Full Lace Wig BW 12'' 12''","Disp-10A+FLWIGBW12",null,{"$f":"A3&\" 10%Off\"","v":"Disp-10A+ Full Lace Wig BW 12'' 12'' 10%Off"},1]
["Disp-10A+ Jewish Wig N1B STW 18'' 18''","Disp-10A+JWIGSTW18",null,{"$f":"A4&\" 10%Off\"","v":"Disp-10A+ Jewish Wig N1B STW 18'' 18'' 10%Off"},1]
["Disp-9A BOB wig 1B/BlUE  STW 12'' 12","Disp-D002",null,"Disp-9A BOB wig 1B/BlUE  STW 12'' 12 10%Off",1]
["Disp-9A BOB wig bubble-gum pink STW 12'' 12","Disp-G038",null,"Disp-9A BOB wig bubble-gum pink STW 12'' 12 10%Off",1]
["Disp-9A BOB wig purple STW 12'' 12","Disp-G030",null,"Disp-9A BOB wig purple STW 12'' 12 10%Off",1]
["Disp-9A BoBo-Wig 99J# STW 8'' 8","Disp-99JSTWBOB8",null,"Disp-9A BoBo-Wig 99J# STW 8'' 8 10%Off",1]
["Disp-9A Closure Wig 4*4  BW 24\" 24","Disp-BW4*4WIG24",null,"Disp-9A Closure Wig 4*4  BW 24\" 24 10%Off",1]
["Disp-9A Closure Wig 4*4  DW 22\" 22","Disp-DEEP4*4WIG22",null,"Disp-9A Closure Wig 4*4  DW 22\" 22 10%Off",1]
["Disp-9A Closure Wig 4*4  JC 12\" 12","Disp-JC4*4WIG12",null,"Disp-9A Closure Wig 4*4  JC 12\" 12 10%Off",1]
["Disp-9A Closure Wig 5*5  BW 14\" 14","Disp-5*5BWLCW14",null,"Disp-9A Closure Wig 5*5  BW 14\" 14 10%Off",1]
["Disp-9A Closure Wig 6*6  BW  16\" 16","Disp-BW6*6LFW16",null,"Disp-9A Closure Wig 6*6  BW  16\" 16 10%Off",1]
["Disp-9A Closure Wig 6*6  BW  20'' 20","Disp-BW6*6LFW20",null,"Disp-9A Closure Wig 6*6  BW  20'' 20 10%Off",1]
["Disp-9A Closure Wig 6*6  DW  16\" 16","Disp-DEEP6*6LFW16",null,"Disp-9A Closure Wig 6*6  DW  16\" 16 10%Off",1]
["Disp-9A Closure Wig 6*6  DW  18\" 18","Disp-DEEP6*6LFW18",null,"Disp-9A Closure Wig 6*6  DW  18\" 18 10%Off",1]
["Disp-9A Closure Wig 6*6  JC  20'' 20","Disp-JC6*6LFW20",null,"Disp-9A Closure Wig 6*6  JC  20'' 20 10%Off",1]
["Disp-9A Closure Wig 6*6  STW  24\" 24","Disp-STW6*6LFW24",null,"Disp-9A Closure Wig 6*6  STW  24\" 24 10%Off",1]
["Disp-9A+-Full Lace Wig BW 18\" 18","Disp-9A+FLWIGBW18",null,"Disp-9A+-Full Lace Wig BW 18\" 18 10%Off",1]
["Disp-9A-13*6 Frontal Wig BW 24\" 24","Disp-BW3D13*6WIG24",null,"Disp-9A-13*6 Frontal Wig BW 24\" 24 10%Off",1]
["Disp-9A-13*6 Frontal Wig STW 16\" 16","Disp-STW3D13*6WIG16",null,"Disp-9A-13*6 Frontal Wig STW 16\" 16 10%Off",1]
["Disp-9A-Frontal Wig 13*4 1B/27 JLX 20'' 20","Disp-1B/27JLXLFW20",null,"Disp-9A-Frontal Wig 13*4 1B/27 JLX 20'' 20 10%Off",1]
["Disp-9A-Frontal Wig 13*4 N1B JLX 18'' 18","Disp-JLXPLFW18",null,"Disp-9A-Frontal Wig 13*4 N1B JLX 18'' 18 10%Off",2]
["Disp-9A-Frontal Wig 33# DW 20\" 20","Disp-33#DEEPLFW20",null,"Disp-9A-Frontal Wig 33# DW 20\" 20 10%Off",1]
["Disp-9A-Frontal Wig BW 18\" 18","Disp-BWLFW18",null,"Disp-9A-Frontal Wig BW 18\" 18 10%Off",1]
["Disp-9A-Frontal Wig BW 24\" 24","Disp-BWLFW24",null,"Disp-9A-Frontal Wig BW 24\" 24 10%Off",1]
["Disp-9A-Frontal Wig DW 10\" 10","Disp-DEEPLFW10",null,"Disp-9A-Frontal Wig DW 10\" 10 10%Off",1]
["Disp-9A-Frontal Wig DW 22\" 22","Disp-DEEPLFW22",null,"Disp-9A-Frontal Wig DW 22\" 22 10%Off",1]
["Disp-9A-Frontal Wig JC 10\" 10","Disp-CURLYLFW10",null,"Disp-9A-Frontal Wig JC 10\" 10 10%Off",1]
["Disp-9A-Frontal Wig JC 14\" 14","Disp-CURLYLFW14",null,"Disp-9A-Frontal Wig JC 14\" 14 10%Off",2]
["Disp-9A-Frontal Wig JC 20\" 20","Disp-CURLYLFW20",null,"Disp-9A-Frontal Wig JC 20\" 20 10%Off",1]
["Disp-9A-Frontal Wig JC 24\" 24","Disp-CURLYLFW24",null,"Disp-9A-Frontal Wig JC 24\" 24 10%Off",1]
["Disp-9A-Transparent Lace Frontal Wig JC 22\"","Disp-TRJCLFW22",null,"Disp-9A-Transparent Lace Frontal Wig JC 22\" 10%Off",1]
["Disp-9A-Frontal Wig 99J# JC 18\" 18","Disp-99JCurlLFW18",null,"Disp-9A-Frontal Wig 99J# JC 18\" 18 10%Off",1]